bitfinex/quotes_SOLUSD_20250704
["timestamp","ask_amount","ask_price","bid_price","bid_amount"]
[1751616863301,6.6728947,149.86,149.81,0.1]
[1751616863500,6.37737288,149.84,149.81,0.1]
[1751616864232,23.35513145,149.86,149.81,0.1]
[1751616864401,6.67423079,149.83,149.81,0.1]
[1751616867124,6.37737288,149.84,149.81,0.1]
[1751616867125,6.67395041,149.84,149.81,0.1]
[1751616867505,6.5983,149.8,149.7,6.23568995]
[1751616867702,26.0,149.68,149.59,6.68477565]
[1751616867902,6.37737288,149.62,149.58,1.3977054]
[1751616868219,6.37737288,149.61,149.58,1.3977054]
[1751616868403,6.37737288,149.61,149.58,0.8977054]
[1751616868596,6.37737288,149.59,149.58,0.8977054]
[1751616868937,8.1970586,149.65,149.58,0.8977054]
[1751616869122,6.37737288,149.61,149.58,0.8977054]
[1751616869630,1.5148,149.65,149.58,0.8977054]
[1751616869828,6.37737288,149.61,149.58,0.8977054]
[1751616870236,1.6149,149.62,149.58,0.8977054]
[1751616870531,6.37737288,149.59,149.58,0.8977054]
[1751616870730,6.2147,149.57,149.51,6.50505026]
[1751616870927,12.75474576,149.52,149.51,6.50505026]
[1751616871134,26.0,149.53,149.51,6.50505026]
[1751616871438,12.75474576,149.52,149.51,6.50505026]
[1751616872101,12.75474576,149.52,149.42,0.23]
[1751616872322,6.37737288,149.43,149.28,1.3977054]
[1751616872537,6.37737288,149.34,149.29,6.69837229]
[1751616872698,26.0,149.44,149.33,6.37737288]
[1751616872906,6.5177,149.46,149.29,23.44430302]
[1751616873405,36.4439,149.51,149.29,23.44430302]
[1751616873406,26.0,149.48,149.4,6.37737288]
[1751616873600,6.37737288,149.49,149.45,6.37737288]
[1751616873820,9.6774072,149.51,149.47,9.6774072]
[1751616874022,9.6774072,149.54,149.49,9.6774072]
[1751616874237,9.6774072,149.54,149.5,9.6774072]
[1751616874411,9.6774072,149.55,149.46,26.0]
[1751616874611,9.6774072,149.55,149.51,9.6774072]
[1751616874809,7.34,149.61,149.52,9.6774072]
[1751616874810,9.6774072,149.56,149.52,9.6774072]
[1751616875011,14.74065124,149.78,149.47,23.4160701]
[1751616875012,9.6774072,149.57,149.5,26.0]
[1751616875234,9.6774072,149.56,149.5,26.0]
[1751616875413,8.3529933,149.63,149.52,9.6774072]
[1751616875617,9.6774072,149.56,149.52,9.6774072]
[1751616876117,9.6774072,149.57,149.53,9.6774072]
[1751616876533,9.6774072,149.57,149.51,6.68851581]
[1751616876828,9.6774072,149.57,149.53,9.6774072]
[1751616877032,26.0,149.61,149.51,6.68851581]
[1751616877335,9.6774072,149.57,149.52,9.6774072]
[1751616877540,26.0,149.61,149.52,9.6774072]
[1751616877849,9.6774072,149.57,149.52,9.6774072]
[1751616878313,9.6774072,149.57,149.53,9.6774072]
[1751616878511,9.6774072,149.58,149.54,6.687174]
[1751616878920,26.0,149.61,149.54,16.3645812]
[1751616879119,26.0,149.61,149.55,9.6774072]
[1751616879325,9.6774072,149.6,149.55,9.6774072]
[1751616879626,9.6774072,149.6,149.56,9.6774072]
[1751616879811,9.6774072,149.61,149.56,9.6774072]
[1751616880545,9.6774072,149.6,149.56,9.6774072]
[1751616880912,9.6774072,149.6,149.55,9.6774072]
[1751616881143,9.6774072,149.62,149.57,9.6774072]
[1751616881348,18.64964886,149.67,149.52,23.9707238]
[1751616881513,7.36,149.68,149.59,9.6774072]
[1751616881844,7.36,149.68,149.6,9.6774072]
[1751616881845,9.6774072,149.65,149.6,9.6774072]
[1751616882214,9.6774072,149.67,149.51,90.29496353]
[1751616882423,7.36,149.68,149.55,18.64964886]
[1751616882638,9.6774072,149.65,149.6,9.6774072]
[1751616882835,9.6774072,149.65,149.61,6.68404518]
[1751616883019,9.6774072,149.64,149.61,6.68404518]
[1751616884030,9.6774072,149.63,149.61,6.68404518]
[1751616884438,9.6774072,149.67,149.58,16.7130119]
[1751616884634,9.6774072,149.67,149.58,26.3904191]
[1751616885243,9.6774072,149.64,149.6,9.6774072]
[1751616885451,9.6774072,149.66,149.59,56.82198007]
[1751616885618,6.8427,149.7,149.59,56.82198007]
[1751616885821,9.6774072,149.66,149.61,9.6774072]
[1751616886145,9.6774072,149.66,149.62,9.6774072]
[1751616887025,9.6774072,149.65,149.61,9.6774072]
[1751616887624,9.6774072,149.66,149.62,6.68359844]
[1751616888021,9.6774072,149.66,149.62,23.39259456]
[1751616889514,9.6774072,149.65,149.62,23.39259456]
[1751616889724,9.6774072,149.65,149.61,9.6774072]
[1751616890735,9.6774072,149.66,149.62,9.6774072]
[1751616891137,9.6774072,149.63,149.58,23.3988501]
[1751616891337,9.6774072,149.67,149.58,23.3988501]
[1751616891521,32.8427,149.7,149.6,9.6774072]
[1751616891726,32.8427,149.7,149.62,6.68359844]
[1751616891961,9.6774072,149.66,149.62,23.39259456]
[1751616892555,9.6774072,149.65,149.62,23.39259456]
[1751616892738,9.6774072,149.66,149.62,23.39259456]
[1751616892953,32.8427,149.7,149.62,23.39259456]
[1751616893138,9.6774072,149.66,149.62,23.39259456]
[1751616893635,9.6774072,149.66,149.58,33.42692873]
[1751616893950,9.6774072,149.66,149.61,9.6774072]
[1751616894131,9.6774072,149.66,149.62,9.6774072]
[1751616894545,9.6774072,149.65,149.6,9.6774072]
[1751616894960,9.6774072,149.65,149.58,23.3988501]
[1751616895253,9.6774072,149.65,149.61,9.6774072]
[1751616895751,39.52285539,149.7,149.58,56.82577883]
[1751616895950,9.6774072,149.65,149.6,9.6774072]
[1751616896647,9.6774072,149.66,149.62,6.68359844]
[1751616897028,39.52284709,149.7,149.62,6.68359844]
[1751616897351,39.52284709,149.7,149.58,6.68538574]
[1751616897352,18.64964886,149.69,149.58,6.68538574]
[1751616897649,9.6774072,149.62,149.58,16.36279294]
[1751616898252,9.6774072,149.63,149.58,33.0762573]
[1751616898629,9.6774072,149.63,149.58,23.3988501]
[1751616898827,9.6774072,149.63,149.58,33.0762573]
[1751616899032,9.6774072,149.63,149.58,23.3988501]
[1751616899233,9.6774072,149.63,149.59,9.6774072]
[1751616899850,6.68091929,149.68,149.6,6.68449197]
[1751616900035,9.6774072,149.63,149.6,6.68449197]
[1751616900831,9.6774072,149.61,149.52,93.02588083]
[1751616901039,18.64964886,149.66,149.55,9.6774072]
[1751616901258,9.6774072,149.59,149.55,9.6774072]
[1751616901859,35.6774072,149.67,149.52,14.04806848]
[1751616901860,9.6774072,149.61,149.57,6.68583272]
[1751616902259,9.6774072,149.6,149.57,6.68583272]
[1751616902456,6.6822586,149.65,149.57,6.68583272]
[1751616902642,9.6774072,149.59,149.56,6.68611817]
[1751616902844,9.6774072,149.59,149.55,6.68655766]
[1751616903171,9.6774072,149.59,149.55,16.36396486]
[1751616903344,9.6774072,149.6,149.55,16.36396486]
[1751616903546,9.6774072,149.6,149.55,6.68655766]
[1751616903857,9.6774072,149.61,149.58,6.68538574]
[1751616904246,6.6818121,149.66,149.58,6.68538574]
[1751616904561,9.6774072,149.63,149.58,6.68538574]
[1751616904764,9.6774072,149.6,149.55,16.36413404]
[1751616904957,9.6774072,149.58,149.55,6.68672684]
[1751616905267,9.6774072,149.58,149.54,16.36442821]
[1751616905564,9.6774072,149.58,149.54,6.68702101]
[1751616905965,9.6774072,149.58,149.54,16.36442821]
[1751616906770,9.6774072,149.59,149.55,9.6774072]
[1751616907475,9.6774072,149.59,149.54,16.36442821]
[1751616907647,9.6774072,149.59,149.55,9.6774072]
[1751616907854,6.6822586,149.65,149.58,6.68538574]
[1751616908070,9.6774072,149.63,149.59,9.6774072]
[1751616908273,9.6774072,149.66,149.61,9.6774072]
[1751616908570,9.6774072,149.65,149.61,9.6774072]
[1751616908771,9.6774072,149.65,149.58,6.68538574]
[1751616908772,9.6774072,149.63,149.59,9.6774072]
[1751616909571,33.06250615,149.67,149.6,4.94701903]
[1751616909746,33.06250615,149.67,149.58,16.36279294]
[1751616909946,9.6774072,149.63,149.59,21.30927648]
[1751616910159,9.6774072,149.63,149.6,4.9469383]
[1751616910375,9.6774072,149.65,149.61,4.9552016]
[1751616910561,9.6774072,149.65,149.6,9.6774072]
[1751616910755,6.6818432,149.66,149.61,4.95520045]
[1751616910756,9.6774072,149.63,149.61,4.95520045]
[1751616910962,9.6774072,149.65,149.61,9.6774072]
[1751616911274,9.6774072,149.65,149.62,4.96462658]
[1751616911575,9.6774072,149.65,149.63,4.96462658]
[1751616911755,9.6774072,149.65,149.59,6.68493098]
[1751616911956,9.6774072,149.64,149.6,4.96433466]
[1751616912263,6.68136567,149.67,149.61,4.96433466]
[1751616912462,9.6774072,149.64,149.62,4.96433466]
[1751616912774,9.6774072,149.65,149.63,4.96433466]
[1751616912955,9.6774072,149.67,149.64,4.97570527]
[1751616913158,9.6774072,149.66,149.65,4.97570527]
[1751616913551,9.6774072,149.66,149.6,6.6844404]
[1751616913756,9.6774072,149.63,149.61,4.97572315]
[1751616913960,9.6774072,149.63,149.62,4.97572315]
[1751616914158,16.36055897,149.63,149.62,4.97572315]
[1751616914767,16.36055897,149.63,149.52,31.67400454]
[1751616914972,9.6774072,149.56,149.52,14.9546]
[1751616915166,9.6774072,149.55,149.52,7.36]
[1751616915368,9.6774072,149.54,149.52,7.36]
[1751616915684,18.64964886,149.61,149.5,9.6774072]
[1751616915685,9.6774072,149.55,149.5,9.6774072]
[1751616915886,9.6774072,149.55,149.49,6.68913018]
[1751616915887,9.6774072,149.56,149.52,9.6774072]
[1751616916053,9.6774072,149.56,149.49,6.68913018]
[1751616916054,16.36387639,149.56,149.51,9.6774072]
[1751616916250,9.6774072,149.55,149.51,9.6774072]
[1751616916476,9.6774072,149.55,149.5,9.6774072]
[1751616916674,9.6774072,149.55,149.51,9.6774072]
[1751616917380,9.6774072,149.55,149.49,23.41265683]
[1751616917678,9.6774072,149.55,149.5,9.6774072]
[1751616918065,9.6774072,149.54,149.49,6.68913018]
[1751616918260,9.6774072,149.58,149.49,16.36653738]
[1751616918261,9.6774072,149.53,149.49,16.36653738]
[1751616918582,9.6774072,149.53,149.48,7.5946]
[1751616918583,9.6774072,149.53,149.48,23.96168591]
[1751616918883,9.6774072,149.52,149.48,16.36708591]
[1751616919083,9.6774072,149.51,149.47,9.6774072]
[1751616919285,9.6774072,149.5,149.46,7.48]
[1751616919781,9.6774072,149.49,149.46,7.48]
[1751616920382,9.6774072,149.49,149.46,14.17059721]
[1751616920755,9.6774072,149.49,149.46,7.48]
[1751616921380,9.6774072,149.47,149.4,163.83840189]
[1751616921579,9.6774072,149.46,149.42,9.6774072]
[1751616921880,9.6774072,149.47,149.42,9.6774072]
[1751616922072,9.6774072,149.46,149.42,9.6774072]
[1751616922383,9.6774072,149.43,149.36,16.47235433]
[1751616922682,9.6774072,149.4,149.36,0.1]
[1751616922984,18.64964886,149.45,149.36,0.1]
[1751616923161,9.6774072,149.38,149.36,0.1]
[1751616923561,6.69120107,149.45,149.36,6.79509431]
[1751616923791,9.6774072,149.41,149.37,9.6774072]
[1751616924089,9.6774072,149.44,149.39,9.6774072]
[1751616924263,9.6774072,149.47,149.43,9.6774072]
[1751616924463,9.6774072,149.48,149.39,26.0]
[1751616924782,9.6774072,149.46,149.42,9.6774072]
[1751616924981,9.6774072,149.45,149.4,9.6774072]
[1751616925294,18.64964886,149.47,149.36,26.1]
[1751616925582,18.64964886,149.47,149.36,42.47248029]
[1751616925583,9.6774072,149.41,149.36,42.47248029]
[1751616925791,9.6774072,149.41,149.36,35.7774072]
[1751616926091,9.6774072,149.4,149.36,0.1]
[1751616926277,23.41763681,149.46,149.36,6.79519497]
[1751616926480,9.6774072,149.42,149.36,6.79519497]
[1751616926684,9.6774072,149.42,149.37,9.6774072]
[1751616927190,23.41763681,149.46,149.37,9.6774072]
[1751616927389,9.6774072,149.42,149.38,9.6774072]
[1751616927563,9.6774072,149.43,149.39,6.69388847]
[1751616927886,9.6774072,149.43,149.36,0.1]
[1751616928187,9.6774072,149.41,149.37,9.6774072]
[1751616928578,9.6774072,149.42,149.37,9.6774072]
[1751616928892,9.6774072,149.42,149.36,6.79507322]
[1751616929290,9.6774072,149.4,149.36,0.1]
[1751616929469,9.6774072,149.41,149.37,9.6774072]
[1751616929786,9.6774072,149.44,149.4,9.6774072]
[1751616929978,6.68993866,149.48,149.43,9.6774072]
[1751616930290,9.6774072,149.47,149.43,9.6774072]
[1751616930475,9.6774072,149.47,149.39,18.64964886]
[1751616930676,9.6774072,149.46,149.39,18.64964886]
[1751616930991,9.6774072,149.46,149.42,9.6774072]
[1751616931197,9.6774072,149.46,149.42,16.36985519]
[1751616931687,9.6774072,149.46,149.39,18.64964886]
[1751616931688,9.6774072,149.44,149.4,9.6774072]
[1751616932072,9.6774072,149.44,149.38,26.0]
[1751616932073,9.6774072,149.43,149.38,42.37165382]
[1751616932275,9.6774072,149.42,149.38,6.69424662]
[1751616932475,9.6774072,149.42,149.38,16.37165382]
[1751616932786,9.6774072,149.43,149.38,16.37165382]
[1751616933379,26.0,149.48,149.39,9.6774072]
[1751616933591,9.6774072,149.46,149.41,9.6774072]
[1751616933884,26.0,149.49,149.4,9.6774072]
[1751616933885,9.6774072,149.45,149.4,9.6774072]
[1751616934403,9.6774072,149.44,149.38,49.43008809]
[1751616934570,9.6774072,149.44,149.4,9.6774072]
[1751616934772,9.6774072,149.45,149.4,9.6774072]
[1751616934965,9.6774072,149.43,149.39,9.6774072]
[1751616935171,9.6774072,149.43,149.39,16.37125847]
[1751616935584,9.6774072,149.42,149.36,6.79520599]
[1751616935787,9.6774072,149.4,149.36,0.1]
[1751616936586,9.6774072,149.4,149.36,6.79508868]
[1751616937562,9.6774072,149.4,149.36,9.7774072]
[1751616938078,9.6774072,149.4,149.36,16.47255652]
[1751616938275,16.37107118,149.4,149.36,0.1]
[1751616938691,9.6774072,149.38,149.36,0.1]
[1751616939183,23.42726505,149.4,149.36,0.1]
[1751616939375,9.6774072,149.37,149.36,0.1]
[1751616939696,16.37219196,149.37,149.36,0.1]
[1751616941590,9.6774072,149.37,149.36,0.1]
[1751616943691,16.37219196,149.37,149.36,0.1]
[1751616944277,35.02184082,149.37,149.36,0.1]
[1751616944594,6.69478476,149.37,149.36,0.1]
[1751616944771,16.37219196,149.37,149.36,0.1]
[1751616945173,1.57,149.36,149.28,11.0751126]
[1751616945371,9.6774072,149.29,149.25,1.0]
[1751616945584,16.37712581,149.26,149.25,1.0]
[1751616945790,9.6774072,149.26,149.25,1.0]
[1751616946498,33.11856987,149.31,149.25,1.0]
[1751616946499,6.69747505,149.31,149.25,1.0]
[1751616946678,16.37488225,149.31,149.25,1.0]
[1751616946876,9.6774072,149.31,149.27,9.6774072]
[1751616947102,16.37448507,149.32,149.27,9.6774072]
[1751616947406,9.6774072,149.34,149.27,6.341]
[1751616947608,9.6774072,149.35,149.27,6.341]
[1751616947778,13.75310002,149.37,149.28,31.08587351]
[1751616947979,13.75310002,149.36,149.29,7.64]
[1751616948195,13.75310002,149.37,149.32,13.75310002]
[1751616948391,13.75310002,149.37,149.33,13.75310002]
[1751616948902,13.75310002,149.36,149.32,13.75310002]
[1751616949083,13.75310002,149.36,149.3,6.69792364]
[1751616949281,13.75310002,149.36,149.32,13.75310002]
[1751616949980,13.75310002,149.37,149.32,13.75310002]
[1751616950180,16.73360107,149.4,149.3,6.69792364]
[1751616950421,1.5686,149.44,149.34,13.75310002]
[1751616950422,13.75310002,149.38,149.34,13.75310002]
[1751616950589,13.75310002,149.41,149.31,18.64964886]
[1751616950782,13.75310002,149.4,149.36,13.75310002]
[1751616950984,13.75310002,149.4,149.35,6.69530001]
[1751616950985,13.75310002,149.4,149.35,20.44840003]
[1751616951203,13.75310002,149.39,149.35,20.44840003]
[1751616951501,13.75310002,149.39,149.35,6.69530001]
[1751616951707,13.75310002,149.39,149.35,20.44840003]
[1751616952794,13.75310002,149.4,149.36,13.75310002]
[1751616952995,13.75310002,149.4,149.35,6.69530001]
[1751616953195,13.75310002,149.4,149.36,13.75310002]
[1751616953525,13.75310002,149.42,149.38,13.75310002]
[1751616953883,13.75310002,149.41,149.37,13.75310002]
[1751616954113,13.75310002,149.4,149.36,13.75310002]
[1751616954313,13.75310002,149.4,149.36,20.44832445]
[1751616955192,6.4285,149.45,149.37,13.75310002]
[1751616955506,13.75310002,149.43,149.39,13.75310002]
[1751616955913,6.4285,149.45,149.39,13.75310002]
[1751616956091,13.75310002,149.43,149.39,13.75310002]
[1751616957108,9.2867142,149.47,149.4,13.75310002]
[1751616957408,13.75310002,149.42,149.37,6.69478476]
[1751616957613,13.75310002,149.42,149.38,13.75310002]
[1751616959698,13.75310002,149.43,149.39,13.75310002]
[1751616960093,13.75310002,149.44,149.4,13.75310002]
[1751616960299,13.75310002,149.44,149.37,6.69478476]
[1751616960300,13.75310002,149.45,149.41,13.75310002]
[1751616960707,13.75310002,149.44,149.37,6.69478476]
[1751616960905,6.89088989,149.46,149.39,13.75310002]
[1751616960906,20.44521544,149.43,149.39,13.75310002]
[1751616961101,6.69211542,149.43,149.38,6.69421705]
[1751616961301,13.75310002,149.43,149.39,13.75310002]
[1751616961511,13.75310002,149.44,149.38,6.69421705]
[1751616961702,13.75310002,149.44,149.4,13.75310002]
[1751616961904,13.75310002,149.44,149.3,13.75310002]
[1751616961905,33.56550004,149.41,149.3,13.75310002]
[1751616962220,13.75310002,149.34,149.3,13.75310002]
[1751616963094,13.75310002,149.31,149.26,7.64]
[1751616963298,13.75310002,149.3,149.26,28.09267448]
[1751616963739,6.69478476,149.37,149.29,13.75310002]
[1751616963917,13.75310002,149.34,149.29,13.75310002]
[1751616964231,13.75310002,149.33,149.29,13.75310002]
[1751616964395,13.75310002,149.34,149.3,13.75310002]
[1751616964591,13.75310002,149.34,149.26,31.08887098]
[1751616964829,13.75310002,149.31,149.27,13.75310002]
[1751616965008,13.75310002,149.31,149.26,7.64]
[1751616965009,13.75310002,149.28,149.26,7.64]
[1751616965325,6.69478476,149.37,149.27,13.75310002]
[1751616965531,6.69478476,149.37,149.29,26.0]
[1751616965696,6.69388847,149.39,149.27,18.64964886]
[1751616965912,6.69342976,149.41,149.35,13.75310002]
[1751616966110,13.75310002,149.41,149.36,13.75310002]
[1751616966334,6.69120107,149.45,149.4,13.75310002]
[1751616966504,6.89088011,149.46,149.42,13.75310002]
[1751616966710,20.64398013,149.46,149.35,18.64964886]
[1751616966944,20.64398013,149.46,149.41,13.75310002]
[1751616967111,20.64398013,149.46,149.39,6.69373116]
[1751616967112,0.2,149.46,149.42,13.75310002]
[1751616967304,0.2,149.46,149.43,13.75310002]
[1751616967505,0.2,149.46,149.38,16.73584147]
[1751616967709,0.2,149.46,149.44,13.75310002]
[1751616967938,0.2,149.46,149.45,13.75310002]
[1751616968904,0.2,149.46,149.43,6.69209663]
[1751616969135,0.2,149.46,149.45,13.75310002]
[1751616969341,0.2,149.46,149.42,14.37245681]
[1751616969558,0.2,149.46,149.44,13.75310002]
[1751616970230,6.89076042,149.46,149.43,13.75310002]
[1751616970419,0.2,149.46,149.43,13.75310002]
[1751616970804,0.2,149.46,149.44,13.75310002]
[1751616971035,0.2,149.46,149.45,13.75310002]
[1751616971418,1e-08,149.46,149.45,58.40274888]
[1751616972129,1e-08,149.46,149.45,64.92694888]
[1751616972521,0.2,149.5,149.48,26.0]
[1751616972724,13.75310002,149.59,149.5,18.64964886]
[1751616972919,13.95310002,149.61,149.57,13.75310002]
[1751616973117,20.63737043,149.61,149.57,13.75310002]
[1751616973322,13.95310002,149.61,149.57,13.75310002]
[1751616973530,0.2,149.61,149.58,13.75310002]
[1751616973922,0.2,149.61,149.54,18.64964886]
[1751616974139,0.2,149.61,149.59,13.75310002]
[1751616974512,0.2,149.61,149.58,13.75310002]
[1751616974929,0.2,149.61,149.55,6.68672684]
[1751616975143,0.2,149.61,149.6,13.75310002]
[1751616975639,0.2,149.61,149.57,18.64964886]
[1751616975814,0.2,149.61,149.6,13.75310002]
[1751616976018,0.2,149.61,149.57,18.64964886]
[1751616976453,0.2,149.61,149.6,32.40274888]
[1751616976750,0.2,149.61,149.6,46.1558489]
[1751616977084,0.2,149.61,149.6,52.84034087]
[1751616977418,0.2,149.61,149.6,25.33414083]
[1751616977610,0.2,149.61,149.6,20.43759199]
[1751616978015,0.2,149.61,149.6,13.75310002]
[1751616978218,0.2,149.61,149.6,26.0]
[1751616978443,0.2,149.61,149.6,13.75310002]
[1751616978617,0.2,149.61,149.59,26.0]
[1751616978818,0.2,149.61,149.59,39.75310002]
[1751616979039,0.2,149.61,149.6,20.43759199]
[1751616979237,0.2,149.61,149.6,13.75310002]
[1751616979741,0.2,149.61,149.6,32.40274888]
[1751616980517,1e-08,149.61,149.6,81.7558489]
[1751616981144,1e-08,149.61,149.6,88.44034087]
[1751616982330,0.2,149.67,149.66,44.64964886]
[1751616982647,0.2,149.67,149.66,66.08274888]
[1751616983051,0.2,149.67,149.66,72.76456098]
[1751616983755,1e-08,149.67,149.66,72.76456098]
[1751616983949,0.2,149.7,149.69,44.64964886]
[1751616984155,0.2,149.7,149.69,93.96274888]
[1751616984329,0.2,149.7,149.69,107.7158489]
[1751616984738,0.2,149.7,149.69,93.96274888]
[1751616984942,0.2,149.7,149.69,58.40274888]
[1751616985152,0.2,149.7,149.69,65.08322185]
[1751616985553,0.2,149.7,149.69,51.33012183]
[1751616985731,0.2,149.7,149.69,78.83632187]
[1751616985936,0.2,149.74,149.73,44.64964886]
[1751616986127,0.2,149.74,149.73,75.31310002]
[1751616986334,0.2,149.74,149.7,13.75310002]
[1751616986528,0.2,149.74,149.71,13.75310002]
[1751616986750,13.75310002,149.73,149.69,47.41310002]
[1751616987057,13.75310002,149.72,149.69,33.66]
[1751616987351,13.75310002,149.73,149.69,47.41310002]
[1751616987668,13.95310002,149.74,149.69,47.41310002]
[1751616987829,0.2,149.74,149.7,13.75310002]
[1751616988027,0.2,149.74,149.7,18.64964886]
[1751616988230,0.2,149.74,149.73,13.75310002]
[1751616988639,0.2,149.74,149.73,39.75310002]
[1751616989261,0.2,149.74,149.73,46.43178832]
[1751616989850,0.2,149.74,149.73,75.33310002]
[1751616990962,0.2,149.74,149.61,46.98709035]
[1751616991169,20.63143184,149.74,149.69,20.43357299]
[1751616991340,13.95310002,149.74,149.7,13.75310002]
[1751616991941,13.75310002,149.73,149.69,13.75310002]
[1751616992259,6.87825759,149.74,149.68,7.66]
[1751616992260,13.75310002,149.72,149.68,7.66]
[1751616992638,13.75310002,149.72,149.68,28.09381214]
[1751616992839,13.75310002,149.72,149.68,7.66]
[1751616993659,0.2,149.74,149.68,7.66]
[1751616993839,13.95310002,149.74,149.69,32.40274888]
[1751616994038,13.95310002,149.74,149.71,13.75310002]
[1751616994039,0.2,149.74,149.71,13.75310002]
[1751616994448,13.75310002,149.73,149.68,21.41310002]
[1751616994638,0.2,149.74,149.68,7.66]
[1751616994639,29.6301943,149.74,149.68,7.66]
[1751616994839,13.75310002,149.71,149.68,7.66]
[1751616995059,12.93458859,149.74,149.68,7.66]
[1751616995234,12.93458859,149.74,149.68,21.41310002]
[1751616995433,13.75310002,149.72,149.68,21.41310002]
[1751616995632,13.75310002,149.71,149.68,7.66]
[1751616996447,13.75310002,149.7,149.68,7.66]
[1751616996638,13.75310002,149.69,149.68,7.66]
[1751616997953,22.95180571,149.74,149.68,7.66]
[1751616998263,13.75310002,149.7,149.68,7.66]
[1751616999551,22.95180571,149.74,149.68,7.66]
[1751616999552,6.67983637,149.71,149.68,7.66]
[1751616999865,13.75310002,149.7,149.68,7.66]
[1751617000546,6.67983637,149.71,149.68,7.66]
[1751617000754,13.75310002,149.69,149.68,7.66]
[1751617001161,13.75310002,149.69,149.62,26.50964886]
[1751617001341,13.75310002,149.66,149.62,21.61310002]
[1751617001975,9.6563084,149.66,149.62,17.5163084]
[1751617002338,75.41862586,149.73,149.62,14.54351066]
[1751617002339,9.6563084,149.67,149.62,14.54351066]
[1751617002972,56.768977,149.73,149.62,14.54351066]
[1751617003156,9.6563084,149.67,149.62,14.54351066]
[1751617003345,9.6563084,149.65,149.62,7.86]
[1751617003548,56.768977,149.73,149.62,7.86]
[1751617003549,9.6563084,149.64,149.62,7.86]
[1751617003762,9.6563084,149.63,149.62,7.86]
[1751617003961,9.6563084,149.64,149.62,7.86]
[1751617004355,23.37853182,149.71,149.62,14.54352921]
[1751617004568,9.6563084,149.66,149.62,24.19983761]
[1751617004741,9.6563084,149.66,149.62,17.5163084]
[1751617005269,6.67958052,149.71,149.63,9.6563084]
[1751617005446,16.3364735,149.7,149.65,16.33851181]
[1751617005764,6.6786883,149.73,149.66,9.6563084]
[1751617005964,9.6563084,149.71,149.66,9.6563084]
[1751617006264,9.6563084,149.71,149.67,9.6563084]
[1751617006645,9.6563084,149.71,149.66,9.6563084]
[1751617007152,9.6563084,149.71,149.67,9.6563084]
[1751617007466,16.33548455,149.72,149.67,9.6563084]
[1751617007767,20.36736078,149.72,149.67,13.68818463]
[1751617007950,13.68818463,149.72,149.67,13.68818463]
[1751617008263,13.68818463,149.72,149.68,13.68818463]
[1751617008652,0.2,149.74,149.65,26.0]
[1751617008860,13.68818463,149.72,149.68,13.68818463]
[1751617009061,13.68818463,149.72,149.67,46.36916707]
[1751617009371,13.68818463,149.71,149.67,46.36916707]
[1751617009773,20.36739014,149.72,149.67,46.36916707]
[1751617009964,13.68818463,149.72,149.67,32.68098244]
[1751617010269,13.68818463,149.72,149.67,46.36916707]
[1751617010469,13.68818463,149.72,149.68,13.68818463]
[1751617010857,20.36733232,149.72,149.67,46.36916707]
[1751617011658,6.67914769,149.72,149.67,46.36916707]
[1751617011851,20.36733232,149.72,149.67,46.36916707]
[1751617012051,20.36733232,149.72,149.67,39.68818463]
[1751617012258,13.68818463,149.7,149.65,6.68214595]
[1751617012458,6.67914769,149.72,149.62,60.08896233]
[1751617012459,13.68818463,149.67,149.62,7.86]
[1751617012659,13.68818463,149.66,149.62,21.54818463]
[1751617012873,13.68818463,149.66,149.62,7.86]
[1751617013052,13.68818463,149.67,149.63,32.68279413]
[1751617013258,13.68818463,149.67,149.63,46.37097876]
[1751617013469,6.6786883,149.73,149.64,13.68818463]
[1751617013470,13.68818463,149.69,149.64,13.68818463]
[1751617014174,13.68818463,149.69,149.65,13.68818463]
[1751617014783,0.2,149.74,149.68,13.68818463]
[1751617014990,0.2,149.74,149.71,18.64964886]
[1751617015195,0.2,149.74,149.71,25.32898376]
[1751617015402,13.88818463,149.74,149.7,89.60811093]
[1751617015558,13.68818463,149.73,149.7,7.76]
[1751617015889,13.68818463,149.72,149.7,7.76]
[1751617016389,0.2,149.74,149.7,14.44001515]
[1751617016693,13.68818463,149.72,149.7,7.76]
[1751617017576,13.68818463,149.71,149.65,6.6822586]
[1751617017774,13.68818463,149.67,149.63,7.76]
[1751617017981,13.68818463,149.68,149.64,6.68262722]
[1751617018164,13.68818463,149.68,149.64,20.37081185]
[1751617018351,13.68818463,149.68,149.64,6.68262722]
[1751617018756,13.68818463,149.69,149.65,13.68818463]
[1751617018952,13.68818463,149.69,149.64,20.37088978]
[1751617019379,13.68818463,149.68,149.64,20.37088978]
[1751617019782,13.68818463,149.66,149.63,14.44302066]
[1751617020160,1.5398,149.73,149.65,13.68818463]